[Event "Titled Tuesday Blitz December 27 Early 2022"]
[White "Rodriguez Fontecha, Marcos"]
[Black "Sargissyan, Sargis"]
[WhiteFideId "2256576"]
[BlackFideId "13303210"]
[WhiteElo "2309"]
[BlackElo "2234"]
[Result "1-0"]
[Round "04"]
[TimeControl "180+2"]
[Date "2022.12.27"]
[WhiteClock "0:01:28"]
[BlackClock "0:00:01"]

1. d4 {[%clk 0:03:00]}  Nf6 {[%clk 0:02:59]} 2. Nf3 {[%clk 0:03:01]}  g6 {[%clk 0:02:58]} 3. Bf4 {[%clk 0:02:59]}  d5 {[%clk 0:02:53]} 4. Nc3 {[%clk 0:02:59]}  Bg7 {[%clk 0:02:45]} 5. Qd2 {[%clk 0:02:59]}  a6 {[%clk 0:02:43]} 6. Bh6 {[%clk 0:02:59]}  Bxh6 {[%clk 0:02:41]} 7. Qxh6 {[%clk 0:02:58]}  b5 {[%clk 0:02:41]} 8. Ne5 {[%clk 0:02:55]}  b4 {[%clk 0:02:12]} 9. Qg7 {[%clk 0:02:53]}  Rf8 {[%clk 0:02:12]} 10. Na4 {[%clk 0:02:53]}  Ng4 {[%clk 0:01:48]} 11. Qxh7 {[%clk 0:02:31]}  Nxe5 {[%clk 0:01:48]} 12. dxe5 {[%clk 0:02:32]}  Qd7 {[%clk 0:01:48]} 13. Nc5 {[%clk 0:02:25]}  Qc6 {[%clk 0:01:48]} 14. Nd3 {[%clk 0:02:22]}  a5 {[%clk 0:00:15]} 15. g3 {[%clk 0:02:18]}  Ba6 {[%clk 0:00:14]} 16. Bg2 {[%clk 0:02:14]}  Nd7 {[%clk 0:00:14]} 17. Qh4 {[%clk 0:02:11]}  Bxd3 {[%clk 0:00:14]} 18. cxd3 {[%clk 0:02:10]}  Nxe5 {[%clk 0:00:14]} 19. O-O {[%clk 0:02:07]}  Qd6 {[%clk 0:00:13]} 20. Rac1 {[%clk 0:02:05]}  f6 {[%clk 0:00:10]} 21. Qd4 {[%clk 0:02:02]}  Rd8 {[%clk 0:00:09]} 22. Qc5 {[%clk 0:01:56]}  a4 {[%clk 0:00:07]} 23. f4 {[%clk 0:01:50]}  Ng4 {[%clk 0:00:05]} 24. Qxc7 {[%clk 0:01:45]}  Ne3 {[%clk 0:00:04]} 25. Rf3 {[%clk 0:01:41]}  Nxg2 {[%clk 0:00:03]} 26. Kxg2 {[%clk 0:01:42]}  Kf7 {[%clk 0:00:03]} 27. Re3 {[%clk 0:01:41]}  Rfe8 {[%clk 0:00:02]} 28. Qb7 {[%clk 0:01:35]}  a3 {[%clk 0:00:01]} 29. b3 {[%clk 0:01:33]}  Rd7 {[%clk 0:00:01]} 30. Qb5 {[%clk 0:01:29]}  e6 {[%clk 0:00:01]} 31. Rc6 {[%clk 0:01:28]} 1-0


[Site "https://www.chess.com"]

[Event "Titled Tuesday Blitz December 27 Early 2022"]
[White "Sadovsky, Artem"]
[Black "Sankalan Shah"]
[WhiteFideId "4155840"]
[BlackFideId "25600362"]
[WhiteElo "2276"]
[BlackElo "2179"]
[Result "1-0"]
[Round "04"]
[TimeControl "180+2"]
[Date "2022.12.27"]
[WhiteClock "0:00:13"]
[BlackClock "0:00:14"]

1. Nf3 {[%clk 0:03:00]}  Nf6 {[%clk 0:02:59]} 2. e3 {[%clk 0:03:01]}  e6 {[%clk 0:02:57]} 3. c4 {[%clk 0:03:02]}  d5 {[%clk 0:02:57]} 4. b3 {[%clk 0:03:02]}  Be7 {[%clk 0:02:57]} 5. Bb2 {[%clk 0:03:03]}  O-O {[%clk 0:02:57]} 6. Be2 {[%clk 0:02:51]}  c5 {[%clk 0:02:50]} 7. O-O {[%clk 0:02:52]}  Nc6 {[%clk 0:02:49]} 8. cxd5 {[%clk 0:02:52]}  exd5 {[%clk 0:02:48]} 9. d4 {[%clk 0:02:53]}  Bg4 {[%clk 0:02:44]} 10. dxc5 {[%clk 0:02:49]}  Bxc5 {[%clk 0:02:43]} 11. h3 {[%clk 0:02:49]}  Be6 {[%clk 0:02:37]} 12. Nc3 {[%clk 0:02:43]}  Ne4 {[%clk 0:02:22]} 13. Qc2 {[%clk 0:02:10]}  Nb4 {[%clk 0:01:55]} 14. Qd1 {[%clk 0:01:52]}  Rc8 {[%clk 0:01:12]} 15. a3 {[%clk 0:01:30]}  Nc6 {[%clk 0:01:08]} 16. b4 {[%clk 0:01:23]}  Be7 {[%clk 0:01:07]} 17. Nxe4 {[%clk 0:01:08]}  dxe4 {[%clk 0:01:06]} 18. Nd4 {[%clk 0:01:07]}  Nxd4 {[%clk 0:01:06]} 19. Bxd4 {[%clk 0:01:07]}  b6 {[%clk 0:00:58]} 20. Ba6 {[%clk 0:01:02]}  Rc7 {[%clk 0:00:57]} 21. Be5 {[%clk 0:00:54]}  Rd7 {[%clk 0:00:56]} 22. Qh5 {[%clk 0:00:48]}  Bf6 {[%clk 0:00:47]} 23. Rfd1 {[%clk 0:00:42]}  Bxe5 {[%clk 0:00:16]} 24. Rxd7 {[%clk 0:00:41]}  Qxd7 {[%clk 0:00:16]} 25. Qxe5 {[%clk 0:00:41]}  f5 {[%clk 0:00:17]} 26. Bb5 {[%clk 0:00:39]}  Qf7 {[%clk 0:00:16]} 27. Rd1 {[%clk 0:00:37]}  Rc8 {[%clk 0:00:16]} 28. Rd6 {[%clk 0:00:35]}  Bb3 {[%clk 0:00:16]} 29. Bd7 {[%clk 0:00:33]}  Rd8 {[%clk 0:00:14]} 30. Be6 {[%clk 0:00:13]} 1-0


[Site "https://www.chess.com"]

[Event "Titled Tuesday Blitz December 27 Early 2022"]
[White "Samsonkin, Artiom"]
[Black "Strahov, Andrej"]
[WhiteFideId "13503111"]
[BlackFideId "4165489"]
[WhiteElo "2420"]
[BlackElo "2398"]
[Result "1-0"]
[Round "04"]
[TimeControl "180+2"]
[Date "2022.12.27"]
[WhiteClock "0:02:13"]
[BlackClock "0:01:35"]

1. d4 {[%clk 0:03:00]}  d5 {[%clk 0:02:59]} 2. Bf4 {[%clk 0:03:00]}  Nf6 {[%clk 0:02:59]} 3. e3 {[%clk 0:03:00]}  c5 {[%clk 0:03:00]} 4. Nf3 {[%clk 0:02:57]}  Nc6 {[%clk 0:03:00]} 5. c3 {[%clk 0:02:56]}  Qb6 {[%clk 0:02:57]} 6. Qc2 {[%clk 0:02:55]}  Bf5 {[%clk 0:02:57]} 7. dxc5 {[%clk 0:02:55]}  Bxc2 {[%clk 0:02:54]} 8. cxb6 {[%clk 0:02:55]}  axb6 {[%clk 0:02:55]} 9. Na3 {[%clk 0:02:55]}  e5 {[%clk 0:02:48]} 10. Nxc2 {[%clk 0:02:53]}  exf4 {[%clk 0:02:48]} 11. exf4 {[%clk 0:02:54]}  Bd6 {[%clk 0:02:47]} 12. g3 {[%clk 0:02:53]}  O-O {[%clk 0:02:41]} 13. Bd3 {[%clk 0:02:26]}  Rfe8+ {[%clk 0:02:40]} 14. Kf1 {[%clk 0:02:27]}  Ne4 {[%clk 0:02:13]} 15. Kg2 {[%clk 0:02:26]}  Nc5 {[%clk 0:02:12]} 16. Bb5 {[%clk 0:02:21]}  Red8 {[%clk 0:02:06]} 17. Rhd1 {[%clk 0:02:19]}  Be7 {[%clk 0:02:01]} 18. Ne3 {[%clk 0:02:17]}  Ra5 {[%clk 0:01:38]} 19. Bxc6 {[%clk 0:02:13]}  bxc6 {[%clk 0:01:35]} 20. b4 {[%clk 0:02:13]} 1-0


[Site "https://www.chess.com"]

[Event "Titled Tuesday Blitz December 27 Early 2022"]
[White "Samunenkov, Ihor"]
[Black "Baskakov, Egor"]
[WhiteFideId "14187086"]
[BlackFideId "24197866"]
[WhiteElo "2501"]
[BlackElo "2215"]
[Result "0-1"]
[Round "04"]
[TimeControl "180+2"]
[Date "2022.12.27"]
[WhiteClock "0:00:25"]
[BlackClock "0:01:43"]

1. e4 {[%clk 0:03:00]}  c5 {[%clk 0:03:00]} 2. Nf3 {[%clk 0:03:00]}  Nf6 {[%clk 0:03:00]} 3. e5 {[%clk 0:02:55]}  Nd5 {[%clk 0:03:00]} 4. Nc3 {[%clk 0:02:55]}  e6 {[%clk 0:03:01]} 5. Nxd5 {[%clk 0:02:55]}  exd5 {[%clk 0:03:02]} 6. d4 {[%clk 0:02:56]}  Nc6 {[%clk 0:03:02]} 7. dxc5 {[%clk 0:02:56]}  Bxc5 {[%clk 0:03:03]} 8. Qxd5 {[%clk 0:02:57]}  d6 {[%clk 0:03:03]} 9. exd6 {[%clk 0:02:19]}  Qb6 {[%clk 0:03:03]} 10. Bc4 {[%clk 0:02:00]}  Bxf2+ {[%clk 0:03:01]} 11. Kf1 {[%clk 0:01:55]}  O-O {[%clk 0:03:01]} 12. Qb5 {[%clk 0:01:40]}  Bg4 {[%clk 0:02:37]} 13. Qxb6 {[%clk 0:01:33]}  Bxb6 {[%clk 0:02:38]} 14. Bf4 {[%clk 0:01:25]}  Rfe8 {[%clk 0:02:30]} 15. h3 {[%clk 0:01:09]}  Bh5 {[%clk 0:02:10]} 16. c3 {[%clk 0:00:59]}  Re4 {[%clk 0:02:06]} 17. Bd5 {[%clk 0:00:44]}  Rxf4 {[%clk 0:02:05]} 18. Rd1 {[%clk 0:00:44]}  Rd8 {[%clk 0:02:01]} 19. Ke2 {[%clk 0:00:41]}  Rf6 {[%clk 0:01:58]} 20. g4 {[%clk 0:00:34]}  Bg6 {[%clk 0:01:58]} 21. h4 {[%clk 0:00:25]}  Rfxd6 {[%clk 0:01:53]} 22. c4 {[%clk 0:00:25]}  h5 {[%clk 0:01:43]} 0-1


[Site "https://www.chess.com"]

[Event "Titled Tuesday Blitz December 27 Early 2022"]
[White "Shubenkova, Veronika"]
[Black "Ilkhomi, Jaloliddin"]
[WhiteFideId "44124040"]
[BlackFideId "14700948"]
[WhiteElo "1960"]
[BlackElo "1997"]
[Result "0-1"]
[Round "04"]
[TimeControl "180+2"]
[Date "2022.12.27"]
[WhiteClock "0:01:26"]
[BlackClock "0:01:51"]

1. e4 {[%clk 0:02:53]}  e6 {[%clk 0:03:00]} 2. d4 {[%clk 0:02:52]}  d5 {[%clk 0:02:59]} 3. exd5 {[%clk 0:02:52]}  exd5 {[%clk 0:03:00]} 4. Nf3 {[%clk 0:02:52]}  Bd6 {[%clk 0:03:00]} 5. Bd3 {[%clk 0:02:51]}  Ne7 {[%clk 0:03:01]} 6. O-O {[%clk 0:02:51]}  O-O {[%clk 0:03:01]} 7. c3 {[%clk 0:02:50]}  Nbc6 {[%clk 0:03:02]} 8. Bg5 {[%clk 0:02:50]}  f6 {[%clk 0:03:01]} 9. Bh4 {[%clk 0:02:50]}  Bf5 {[%clk 0:03:01]} 10. Bg3 {[%clk 0:02:50]}  Qd7 {[%clk 0:03:01]} 11. Re1 {[%clk 0:02:50]}  Rae8 {[%clk 0:03:00]} 12. Qc2 {[%clk 0:02:50]}  Bxg3 {[%clk 0:02:50]} 13. hxg3 {[%clk 0:02:49]}  Bxd3 {[%clk 0:02:47]} 14. Qxd3 {[%clk 0:02:49]}  Nf5 {[%clk 0:02:47]} 15. Nbd2 {[%clk 0:02:49]}  Nd6 {[%clk 0:02:46]} 16. b4 {[%clk 0:02:45]}  a6 {[%clk 0:02:45]} 17. a4 {[%clk 0:02:45]}  Rxe1+ {[%clk 0:02:43]} 18. Rxe1 {[%clk 0:02:44]}  Re8 {[%clk 0:02:43]} 19. Rxe8+ {[%clk 0:02:42]}  Qxe8 {[%clk 0:02:44]} 20. b5 {[%clk 0:02:43]}  axb5 {[%clk 0:02:42]} 21. axb5 {[%clk 0:02:43]}  Na5 {[%clk 0:02:42]} 22. Qb1 {[%clk 0:02:24]}  Qxb5 {[%clk 0:02:41]} 23. Qa2 {[%clk 0:02:24]}  b6 {[%clk 0:02:34]} 24. Kh2 {[%clk 0:02:20]}  Kf7 {[%clk 0:02:19]} 25. Kg1 {[%clk 0:01:59]}  Ndc4 {[%clk 0:02:11]} 26. Nf1 {[%clk 0:01:55]}  Qb2 {[%clk 0:01:59]} 27. Qa4 {[%clk 0:01:54]}  b5 {[%clk 0:01:57]} 28. Qb4 {[%clk 0:01:46]}  Qxb4 {[%clk 0:01:56]} 29. cxb4 {[%clk 0:01:46]}  Nc6 {[%clk 0:01:57]} 30. N1d2 {[%clk 0:01:36]}  Nxd2 {[%clk 0:01:54]} 31. Nxd2 {[%clk 0:01:36]}  Nxb4 {[%clk 0:01:54]} 32. Nb3 {[%clk 0:01:36]}  Ke7 {[%clk 0:01:51]} 33. Kf1 {[%clk 0:01:37]}  Kd6 {[%clk 0:01:51]} 34. Ke2 {[%clk 0:01:36]}  Na6 {[%clk 0:01:51]} 35. Kd2 {[%clk 0:01:32]}  g6 {[%clk 0:01:51]} 36. Kc3 {[%clk 0:01:31]}  c5 {[%clk 0:01:51]} 37. dxc5+ {[%clk 0:01:31]}  Nxc5 {[%clk 0:01:52]} 38. Nd4 {[%clk 0:01:30]}  Ne4+ {[%clk 0:01:52]} 39. Kb4 {[%clk 0:01:30]}  Nxf2 {[%clk 0:01:52]} 40. Nxb5+ {[%clk 0:01:30]}  Ke5 {[%clk 0:01:52]} 41. Kc5 {[%clk 0:01:29]}  Ne4+ {[%clk 0:01:52]} 42. Kc6 {[%clk 0:01:26]}  d4 {[%clk 0:01:51]} 0-1


[Site "https://www.chess.com"]

[Event "Titled Tuesday Blitz December 27 Early 2022"]
[White "Sovetbekova, Nurai"]
[Black "Erzhanov, Arman"]
[WhiteFideId "13801910"]
[BlackFideId "4138821"]
[WhiteElo "1764"]
[BlackElo "2228"]
[Result "0-1"]
[Round "04"]
[TimeControl "180+2"]
[Date "2022.12.27"]
[WhiteClock "0:00:01"]
[BlackClock "0:00:32"]

1. d4 {[%clk 0:03:00]}  d6 {[%clk 0:03:00]} 2. c4 {[%clk 0:03:00]}  e5 {[%clk 0:02:59]} 3. Nc3 {[%clk 0:02:59]}  exd4 {[%clk 0:02:59]} 4. Qxd4 {[%clk 0:02:59]}  Nc6 {[%clk 0:03:00]} 5. Qd1 {[%clk 0:02:57]}  Nf6 {[%clk 0:03:00]} 6. Nf3 {[%clk 0:02:57]}  Be6 {[%clk 0:03:00]} 7. b3 {[%clk 0:02:57]}  d5 {[%clk 0:03:00]} 8. cxd5 {[%clk 0:02:54]}  Nxd5 {[%clk 0:03:01]} 9. Nxd5 {[%clk 0:02:52]}  Bxd5 {[%clk 0:03:01]} 10. Bd2 {[%clk 0:02:30]}  Bb4 {[%clk 0:02:37]} 11. Bxb4 {[%clk 0:01:57]}  Nxb4 {[%clk 0:02:36]} 12. a3 {[%clk 0:01:48]}  Nc6 {[%clk 0:02:35]} 13. e3 {[%clk 0:01:42]}  O-O {[%clk 0:02:27]} 14. Be2 {[%clk 0:01:37]}  Qd7 {[%clk 0:02:12]} 15. O-O {[%clk 0:01:36]}  Rad8 {[%clk 0:02:13]} 16. Qc2 {[%clk 0:01:32]}  Qe6 {[%clk 0:02:11]} 17. b4 {[%clk 0:01:22]}  Be4 {[%clk 0:02:10]} 18. Qc3 {[%clk 0:01:17]}  Qg4 {[%clk 0:02:09]} 19. Rad1 {[%clk 0:00:59]}  h5 {[%clk 0:02:04]} 20. h3 {[%clk 0:00:58]}  Qg6 {[%clk 0:02:02]} 21. Qc5 {[%clk 0:00:42]}  b6 {[%clk 0:01:48]} 22. Qg5 {[%clk 0:00:30]}  f6 {[%clk 0:01:22]} 23. Qxg6 {[%clk 0:00:26]}  Bxg6 {[%clk 0:01:23]} 24. Nh4 {[%clk 0:00:26]}  Bf7 {[%clk 0:01:23]} 25. Nf5 {[%clk 0:00:23]}  Kh7 {[%clk 0:01:21]} 26. Rc1 {[%clk 0:00:20]}  Be8 {[%clk 0:01:18]} 27. Bf3 {[%clk 0:00:19]}  Ne5 {[%clk 0:01:14]} 28. Rxc7 {[%clk 0:00:18]}  Nxf3+ {[%clk 0:01:14]} 29. gxf3 {[%clk 0:00:19]}  Rf7 {[%clk 0:01:13]} 30. Rfc1 {[%clk 0:00:15]}  g6 {[%clk 0:01:11]} 31. Nd4 {[%clk 0:00:14]}  Kg8 {[%clk 0:01:06]} 32. Rxf7 {[%clk 0:00:13]}  Bxf7 {[%clk 0:01:06]} 33. Rc7 {[%clk 0:00:13]}  a5 {[%clk 0:01:05]} 34. bxa5 {[%clk 0:00:14]}  bxa5 {[%clk 0:01:05]} 35. Ra7 {[%clk 0:00:15]}  Rd5 {[%clk 0:01:05]} 36. Ra8+ {[%clk 0:00:15]}  Kg7 {[%clk 0:01:05]} 37. Ra7 {[%clk 0:00:15]}  Kf8 {[%clk 0:01:03]} 38. Nc6 {[%clk 0:00:14]}  Rg5+ {[%clk 0:01:00]} 39. Kf1 {[%clk 0:00:14]}  Bd5 {[%clk 0:00:58]} 40. Nd4 {[%clk 0:00:11]}  h4 {[%clk 0:00:56]} 41. Ke2 {[%clk 0:00:09]}  Bc4+ {[%clk 0:00:55]} 42. Kd2 {[%clk 0:00:09]}  Rg2 {[%clk 0:00:52]} 43. Rxa5 {[%clk 0:00:10]}  Rxf2+ {[%clk 0:00:49]} 44. Kc3 {[%clk 0:00:10]}  Bf7 {[%clk 0:00:45]} 45. Ra8+ {[%clk 0:00:10]}  Kg7 {[%clk 0:00:45]} 46. Ra7 {[%clk 0:00:10]}  Rh2 {[%clk 0:00:43]} 47. Ne6+ {[%clk 0:00:10]}  Kg8 {[%clk 0:00:43]} 48. Ra8+ {[%clk 0:00:09]}  Kh7 {[%clk 0:00:43]} 49. Nf4 {[%clk 0:00:09]}  g5 {[%clk 0:00:42]} 50. Ra7 {[%clk 0:00:06]}  Kg8 {[%clk 0:00:42]} 51. Nd3 {[%clk 0:00:04]}  Rxh3 {[%clk 0:00:42]} 52. a4 {[%clk 0:00:04]}  Rxf3 {[%clk 0:00:42]} 53. Kd4 {[%clk 0:00:03]}  h3 {[%clk 0:00:42]} 54. Rb7 {[%clk 0:00:02]}  Rf1 {[%clk 0:00:37]} 55. Rb2 {[%clk 0:00:02]}  g4 {[%clk 0:00:36]} 56. Nf4 {[%clk 0:00:01]}  Rd1+ {[%clk 0:00:34]} 57. Ke4 {[%clk 0:00:01]}  Bg6+ {[%clk 0:00:32]} 58. Nxg6 {[%clk 0:00:01]}  g3 {[%clk 0:00:33]} 59. Nf4 {[%clk 0:00:01]}  h2 {[%clk 0:00:32]} 0-1


[Site "https://www.chess.com"]

[Event "Titled Tuesday Blitz December 27 Early 2022"]
[White "Suleymanli, Suleyman"]
[Black "Van Foreest, Jorden"]
[WhiteFideId "13416375"]
[BlackFideId "1039784"]
[WhiteElo "2269"]
[BlackElo "2689"]
[Result "0-1"]
[Round "04"]
[TimeControl "180+2"]
[Date "2022.12.27"]
[WhiteClock "0:00:05"]
[BlackClock "0:00:31"]

1. Nf3 {[%clk 0:02:59]}  d6 {[%clk 0:02:59]} 2. g3 {[%clk 0:02:57]}  Kd7 {[%clk 0:02:56]} 3. d4 {[%clk 0:02:57]}  g6 {[%clk 0:02:57]} 4. Bg2 {[%clk 0:02:57]}  Bg7 {[%clk 0:02:57]} 5. c4 {[%clk 0:02:57]}  Ke8 {[%clk 0:02:58]} 6. Nc3 {[%clk 0:02:58]}  Nd7 {[%clk 0:02:58]} 7. O-O {[%clk 0:02:58]}  e6 {[%clk 0:02:58]} 8. e4 {[%clk 0:02:58]}  Ne7 {[%clk 0:02:58]} 9. h4 {[%clk 0:02:57]}  h6 {[%clk 0:02:58]} 10. Be3 {[%clk 0:02:56]}  Nf6 {[%clk 0:02:58]} 11. e5 {[%clk 0:02:55]}  Ng4 {[%clk 0:02:58]} 12. exd6 {[%clk 0:02:55]}  cxd6 {[%clk 0:02:56]} 13. Qd2 {[%clk 0:02:53]}  Nxe3 {[%clk 0:02:56]} 14. fxe3 {[%clk 0:02:53]}  Bd7 {[%clk 0:02:57]} 15. e4 {[%clk 0:02:52]}  e5 {[%clk 0:02:54]} 16. dxe5 {[%clk 0:02:50]}  dxe5 {[%clk 0:02:54]} 17. Nd5 {[%clk 0:02:51]}  Nc6 {[%clk 0:02:54]} 18. Rad1 {[%clk 0:02:47]}  Bg4 {[%clk 0:02:53]} 19. b4 {[%clk 0:02:41]}  Bxf3 {[%clk 0:02:52]} 20. Bxf3 {[%clk 0:02:40]}  Nd4 {[%clk 0:02:53]} 21. Bg4 {[%clk 0:02:38]}  h5 {[%clk 0:02:53]} 22. Bh3 {[%clk 0:02:38]}  Kf8 {[%clk 0:02:49]} 23. Qf2 {[%clk 0:02:37]}  f6 {[%clk 0:02:43]} 24. Rxd4 {[%clk 0:02:17]}  exd4 {[%clk 0:02:43]} 25. Qxd4 {[%clk 0:02:18]}  Kg8 {[%clk 0:02:42]} 26. Rxf6 {[%clk 0:01:36]}  Bxf6 {[%clk 0:02:29]} 27. Nxf6+ {[%clk 0:01:37]}  Kf7 {[%clk 0:02:30]} 28. Nd5 {[%clk 0:01:34]}  Re8 {[%clk 0:02:11]} 29. e5 {[%clk 0:01:32]}  a5 {[%clk 0:01:37]} 30. b5 {[%clk 0:01:09]}  Rc8 {[%clk 0:01:37]} 31. Qf4+ {[%clk 0:00:33]}  Kg7 {[%clk 0:01:09]} 32. Bxc8 {[%clk 0:00:32]}  Qxc8 {[%clk 0:00:43]} 33. Qf6+ {[%clk 0:00:31]}  Kh6 {[%clk 0:00:40]} 34. Nf4 {[%clk 0:00:23]}  Qg4 {[%clk 0:00:37]} 35. Kg2 {[%clk 0:00:18]}  Qf5 {[%clk 0:00:34]} 36. Qxf5 {[%clk 0:00:10]}  gxf5 {[%clk 0:00:34]} 37. c5 {[%clk 0:00:10]}  Rxe5 {[%clk 0:00:34]} 38. c6 {[%clk 0:00:08]}  bxc6 {[%clk 0:00:32]} 39. bxc6 {[%clk 0:00:08]}  Rc5 {[%clk 0:00:31]} 40. Ne6 {[%clk 0:00:06]}  Rxc6 {[%clk 0:00:31]} 41. Nd4 {[%clk 0:00:07]}  Rc4 {[%clk 0:00:29]} 42. Nxf5+ {[%clk 0:00:07]}  Kh7 {[%clk 0:00:29]} 43. Ne3 {[%clk 0:00:07]}  Ra4 {[%clk 0:00:29]} 44. Kf3 {[%clk 0:00:07]}  Rxa2 {[%clk 0:00:30]} 45. g4 {[%clk 0:00:06]}  a4 {[%clk 0:00:31]} 46. gxh5 {[%clk 0:00:05]}  a3 {[%clk 0:00:31]} 47. Nc4 {[%clk 0:00:06]}  Rh2 {[%clk 0:00:31]} 48. Kg3 {[%clk 0:00:05]}  a2 {[%clk 0:00:31]} 49. Kxh2 {[%clk 0:00:05]}  a1=Q {[%clk 0:00:31]} 50. Ne3 {[%clk 0:00:05]}  Qe5+ {[%clk 0:00:31]} 0-1


[Site "https://www.chess.com"]

[Event "Titled Tuesday Blitz December 27 Early 2022"]
[White "Szyszylo, Rafal"]
[Black "Andreev, Eduard"]
[WhiteFideId "1109626"]
[BlackFideId "14103400"]
[WhiteElo "2091"]
[BlackElo "2413"]
[Result "0-1"]
[Round "04"]
[TimeControl "180+2"]
[Date "2022.12.27"]
[WhiteClock "0:00:01"]
[BlackClock "0:00:27"]

1. e4 {[%clk 0:03:00]}  c6 {[%clk 0:03:00]} 2. d4 {[%clk 0:02:59]}  d5 {[%clk 0:03:00]} 3. e5 {[%clk 0:02:59]}  c5 {[%clk 0:03:01]} 4. dxc5 {[%clk 0:02:59]}  e6 {[%clk 0:03:01]} 5. a3 {[%clk 0:02:59]}  Bxc5 {[%clk 0:02:59]} 6. b4 {[%clk 0:02:58]}  Be7 {[%clk 0:02:59]} 7. Qg4 {[%clk 0:02:58]}  g5 {[%clk 0:02:28]} 8. Qh5 {[%clk 0:02:33]}  Qc7 {[%clk 0:02:21]} 9. Nf3 {[%clk 0:02:14]}  Qxc2 {[%clk 0:02:19]} 10. Nbd2 {[%clk 0:02:09]}  Bd7 {[%clk 0:01:59]} 11. h4 {[%clk 0:02:06]}  Qg6 {[%clk 0:01:48]} 12. hxg5 {[%clk 0:02:05]}  Qc2 {[%clk 0:01:35]} 13. Be2 {[%clk 0:01:43]}  Nc6 {[%clk 0:01:33]} 14. Rh4 {[%clk 0:01:04]}  a6 {[%clk 0:01:13]} 15. Bd1 {[%clk 0:00:57]}  Qc3 {[%clk 0:01:05]} 16. Rb1 {[%clk 0:00:53]}  Nxe5 {[%clk 0:00:58]} 17. Nxe5 {[%clk 0:00:52]}  Qxe5+ {[%clk 0:00:57]} 18. Kf1 {[%clk 0:00:47]}  Qxg5 {[%clk 0:00:57]} 19. Nf3 {[%clk 0:00:18]}  Qxh5 {[%clk 0:00:52]} 20. Rxh5 {[%clk 0:00:19]}  Nf6 {[%clk 0:00:52]} 21. Rh6 {[%clk 0:00:16]}  Ng4 {[%clk 0:00:50]} 22. Rh5 {[%clk 0:00:14]}  Nf6 {[%clk 0:00:48]} 23. Rh6 {[%clk 0:00:14]}  Ne4 {[%clk 0:00:43]} 24. Bb2 {[%clk 0:00:12]}  Rg8 {[%clk 0:00:41]} 25. Rxh7 {[%clk 0:00:11]}  Bd6 {[%clk 0:00:31]} 26. Be2 {[%clk 0:00:11]}  Bb5 {[%clk 0:00:28]} 27. Ne5 {[%clk 0:00:07]}  Bxe5 {[%clk 0:00:26]} 28. Bxb5+ {[%clk 0:00:06]}  axb5 {[%clk 0:00:26]} 29. Bxe5 {[%clk 0:00:07]}  Nd2+ {[%clk 0:00:27]} 30. Ke2 {[%clk 0:00:06]}  Nxb1 {[%clk 0:00:27]} 31. Rh8 {[%clk 0:00:01]}  Rxh8 {[%clk 0:00:27]} 0-1


[Site "https://www.chess.com"]

[Event "Titled Tuesday Blitz December 27 Early 2022"]
[White "Tactrics"]
[Black "Grigorov, Grigor"]
[BlackFideId "2907313"]
[WhiteElo "2976"]
[BlackElo "2510"]
[Result "1/2-1/2"]
[Round "04"]
[TimeControl "180+2"]
[Date "2022.12.27"]
[WhiteClock "0:00:40"]
[BlackClock "0:00:10"]

1. e4 {[%clk 0:03:00]}  c6 {[%clk 0:02:59]} 2. Nc3 {[%clk 0:03:00]}  d5 {[%clk 0:02:59]} 3. Nf3 {[%clk 0:03:01]}  dxe4 {[%clk 0:03:00]} 4. Nxe4 {[%clk 0:03:02]}  Nf6 {[%clk 0:03:00]} 5. Qe2 {[%clk 0:03:03]}  Nxe4 {[%clk 0:03:00]} 6. Qxe4 {[%clk 0:03:04]}  Be6 {[%clk 0:03:00]} 7. Bc4 {[%clk 0:03:01]}  Bxc4 {[%clk 0:03:00]} 8. Qxc4 {[%clk 0:03:02]}  Qd5 {[%clk 0:03:00]} 9. Qe2 {[%clk 0:03:02]}  c5 {[%clk 0:03:00]} 10. b3 {[%clk 0:02:55]}  Nc6 {[%clk 0:02:58]} 11. Bb2 {[%clk 0:02:56]}  e6 {[%clk 0:02:56]} 12. O-O {[%clk 0:02:55]}  Be7 {[%clk 0:02:34]} 13. Bxg7 {[%clk 0:02:44]}  Rg8 {[%clk 0:02:34]} 14. Bb2 {[%clk 0:02:44]}  O-O-O {[%clk 0:02:33]} 15. Rfe1 {[%clk 0:02:39]}  Qh5 {[%clk 0:02:25]} 16. g3 {[%clk 0:02:38]}  Qf5 {[%clk 0:02:19]} 17. d3 {[%clk 0:02:36]}  Rg4 {[%clk 0:02:15]} 18. Ne5 {[%clk 0:02:31]}  Nxe5 {[%clk 0:02:14]} 19. Qxe5 {[%clk 0:02:32]}  Qg6 {[%clk 0:02:12]} 20. Re4 {[%clk 0:02:16]}  Rxe4 {[%clk 0:01:54]} 21. Qxe4 {[%clk 0:02:10]}  Qxe4 {[%clk 0:01:53]} 22. dxe4 {[%clk 0:02:11]}  Rd2 {[%clk 0:01:53]} 23. Rc1 {[%clk 0:02:11]}  Re2 {[%clk 0:01:46]} 24. Kf1 {[%clk 0:01:58]}  Rxe4 {[%clk 0:01:45]} 25. Re1 {[%clk 0:01:58]}  Rxe1+ {[%clk 0:01:43]} 26. Kxe1 {[%clk 0:01:59]}  Bd6 {[%clk 0:01:38]} 27. Ke2 {[%clk 0:01:59]}  f5 {[%clk 0:01:37]} 28. Kf3 {[%clk 0:01:59]}  e5 {[%clk 0:01:31]} 29. Kg2 {[%clk 0:01:53]}  Kd7 {[%clk 0:01:28]} 30. Kh3 {[%clk 0:01:53]}  Ke6 {[%clk 0:01:04]} 31. Kh4 {[%clk 0:01:53]}  e4 {[%clk 0:01:00]} 32. Kg5 {[%clk 0:01:48]}  Bf8 {[%clk 0:00:34]} 33. h3 {[%clk 0:01:42]}  a6 {[%clk 0:00:30]} 34. c4 {[%clk 0:01:40]}  Bd6 {[%clk 0:00:22]} 35. Kh6 {[%clk 0:01:32]}  e3 {[%clk 0:00:17]} 36. fxe3 {[%clk 0:01:29]}  Bxg3 {[%clk 0:00:17]} 37. Kxh7 {[%clk 0:01:30]}  Bf2 {[%clk 0:00:16]} 38. Bc1 {[%clk 0:01:27]}  Ke5 {[%clk 0:00:17]} 39. Kg6 {[%clk 0:01:26]}  Ke4 {[%clk 0:00:17]} 40. Kf6 {[%clk 0:01:24]}  Bh4+ {[%clk 0:00:16]} 41. Ke6 {[%clk 0:01:24]}  Bg5 {[%clk 0:00:16]} 42. Bd2 {[%clk 0:01:14]}  Bh4 {[%clk 0:00:16]} 43. Kd6 {[%clk 0:01:11]}  Bf2 {[%clk 0:00:14]} 44. Ke6 {[%clk 0:01:06]}  Bh4 {[%clk 0:00:11]} 45. Bc1 {[%clk 0:01:00]}  Bg5 {[%clk 0:00:11]} 46. a4 {[%clk 0:00:54]}  a5 {[%clk 0:00:10]} 47. Bd2 {[%clk 0:00:54]}  b6 {[%clk 0:00:11]} 48. Bc1 {[%clk 0:00:51]}  Bh4 {[%clk 0:00:11]} 49. Bb2 {[%clk 0:00:50]}  Bg5 {[%clk 0:00:10]} 50. Bc1 {[%clk 0:00:40]}  Bh4 {[%clk 0:00:10]} 1/2-1/2


[Site "https://www.chess.com"]